[Event "Titled Tuesday Blitz February 21 Early 2023"]
[White "Rosh Jain"]
[Black "Wickramasinghe, Minethma Lasandi"]
[WhiteFideId "25789465"]
[BlackFideId "9966170"]
[WhiteElo "2248"]
[BlackElo "1483"]
[Result "0-1"]
[Round "04"]
[TimeControl "180+2"]
[Date "2023.02.21"]
[WhiteClock "0:00:03"]
[BlackClock "0:00:59"]

1. e4 {[%clk 0:00:28]}  c5 {[%clk 0:02:57]} 2. Nf3 {[%clk 0:00:28]}  Nc6 {[%clk 0:02:57]} 3. d4 {[%clk 0:00:28]}  cxd4 {[%clk 0:02:57]} 4. Nxd4 {[%clk 0:00:29]}  g6 {[%clk 0:02:57]} 5. Nc3 {[%clk 0:00:25]}  Bg7 {[%clk 0:02:57]} 6. Be3 {[%clk 0:00:25]}  Nf6 {[%clk 0:02:58]} 7. f3 {[%clk 0:00:23]}  O-O {[%clk 0:02:58]} 8. Qd2 {[%clk 0:00:23]}  d5 {[%clk 0:02:57]} 9. exd5 {[%clk 0:00:19]}  Nxd5 {[%clk 0:02:57]} 10. Nxd5 {[%clk 0:00:19]}  Qxd5 {[%clk 0:02:57]} 11. Nxc6 {[%clk 0:00:19]}  Qxc6 {[%clk 0:02:57]} 12. c3 {[%clk 0:00:18]}  Be6 {[%clk 0:02:52]} 13. Be2 {[%clk 0:00:17]}  Rfd8 {[%clk 0:02:52]} 14. Qc2 {[%clk 0:00:17]}  Bf5 {[%clk 0:02:46]} 15. Qb3 {[%clk 0:00:17]}  Be6 {[%clk 0:02:33]} 16. c4 {[%clk 0:00:15]}  Bd4 {[%clk 0:01:58]} 17. Bxd4 {[%clk 0:00:14]}  Rxd4 {[%clk 0:01:59]} 18. Rc1 {[%clk 0:00:14]}  Qc5 {[%clk 0:01:50]} 19. Qc3 {[%clk 0:00:12]}  Rad8 {[%clk 0:01:47]} 20. b4 {[%clk 0:00:12]}  Qg5 {[%clk 0:01:42]} 21. O-O {[%clk 0:00:11]}  Rd2 {[%clk 0:01:35]} 22. Rce1 {[%clk 0:00:10]}  Bf5 {[%clk 0:01:25]} 23. f4 {[%clk 0:00:07]}  Qh6 {[%clk 0:01:17]} 24. Qf3 {[%clk 0:00:06]}  b6 {[%clk 0:01:12]} 25. a4 {[%clk 0:00:05]}  Qg7 {[%clk 0:01:12]} 26. a5 {[%clk 0:00:04]}  Qd4+ {[%clk 0:01:12]} 27. Kh1 {[%clk 0:00:04]}  bxa5 {[%clk 0:01:12]} 28. bxa5 {[%clk 0:00:04]}  Be4 {[%clk 0:01:11]} 29. Qg3 {[%clk 0:00:02]}  Qb2 {[%clk 0:01:11]} 30. Qf2 {[%clk 0:00:02]}  Bd3 {[%clk 0:01:09]} 31. Qe3 {[%clk 0:00:01]}  Bxe2 {[%clk 0:01:08]} 32. Qxe7 {[%clk 0:00:01]}  Bxf1 {[%clk 0:01:07]} 33. Rxf1 {[%clk 0:00:02]}  Rd1 {[%clk 0:00:59]} 34. Rg1 {[%clk 0:00:01]}  Rxg1+ {[%clk 0:00:58]} 35. Kxg1 {[%clk 0:00:02]}  Rd1+ {[%clk 0:00:58]} 36. Qe1 {[%clk 0:00:03]}  Rxe1# {[%clk 0:00:59]} 0-1


[Site "https://www.chess.com"]

[Event "Titled Tuesday Blitz February 21 Early 2023"]
[White "SulfatoFerroso"]
[Black "Quirke, Jeffrey"]
[BlackFideId "2013029"]
[WhiteElo "1776"]
[BlackElo "2007"]
[Result "0-1"]
[Round "04"]
[TimeControl "180+2"]
[Date "2023.02.21"]
[WhiteClock "0:00:02"]
[BlackClock "0:01:20"]

1. e4 {[%clk 0:02:38]}  g6 {[%clk 0:02:58]} 2. d4 {[%clk 0:02:33]}  Bg7 {[%clk 0:02:58]} 3. Nf3 {[%clk 0:02:31]}  d6 {[%clk 0:02:58]} 4. Bc4 {[%clk 0:02:28]}  e6 {[%clk 0:02:56]} 5. Nc3 {[%clk 0:02:26]}  Ne7 {[%clk 0:02:56]} 6. O-O {[%clk 0:02:24]}  a6 {[%clk 0:02:56]} 7. a4 {[%clk 0:02:23]}  b6 {[%clk 0:02:56]} 8. Bg5 {[%clk 0:02:14]}  h6 {[%clk 0:02:55]} 9. Be3 {[%clk 0:02:06]}  Bb7 {[%clk 0:02:53]} 10. Qd2 {[%clk 0:02:01]}  Nd7 {[%clk 0:02:52]} 11. Rfe1 {[%clk 0:01:22]}  Nf6 {[%clk 0:02:51]} 12. Rad1 {[%clk 0:00:54]}  Nxe4 {[%clk 0:02:47]} 13. Nxe4 {[%clk 0:00:49]}  Bxe4 {[%clk 0:02:47]} 14. d5 {[%clk 0:00:35]}  Bxd5 {[%clk 0:02:26]} 15. Bxd5 {[%clk 0:00:33]}  Nxd5 {[%clk 0:02:26]} 16. Bd4 {[%clk 0:00:29]}  O-O {[%clk 0:02:21]} 17. c4 {[%clk 0:00:23]}  Nf6 {[%clk 0:02:17]} 18. Be3 {[%clk 0:00:18]}  Kh7 {[%clk 0:02:14]} 19. b4 {[%clk 0:00:18]}  a5 {[%clk 0:02:12]} 20. c5 {[%clk 0:00:15]}  axb4 {[%clk 0:02:06]} 21. cxb6 {[%clk 0:00:12]}  cxb6 {[%clk 0:02:04]} 22. Qxb4 {[%clk 0:00:12]}  Nd5 {[%clk 0:01:54]} 23. Rxd5 {[%clk 0:00:09]}  exd5 {[%clk 0:01:54]} 24. Bxb6 {[%clk 0:00:07]}  Qd7 {[%clk 0:01:45]} 25. a5 {[%clk 0:00:06]}  Rfb8 {[%clk 0:01:37]} 26. Rd1 {[%clk 0:00:06]}  Qc6 {[%clk 0:01:33]} 27. h4 {[%clk 0:00:03]}  Ra6 {[%clk 0:01:28]} 28. h5 {[%clk 0:00:03]}  Raxb6 {[%clk 0:01:27]} 29. axb6 {[%clk 0:00:03]}  Rxb6 {[%clk 0:01:27]} 30. Qg4 {[%clk 0:00:02]}  Qc2 {[%clk 0:01:20]} 0-1


[Site "https://www.chess.com"]

[Event "Titled Tuesday Blitz February 21 Early 2023"]
[White "Nakamura, Hikaru"]
[Black "Livaic, Leon"]
[WhiteFideId "2016192"]
[BlackFideId "14531534"]
[WhiteElo "2775"]
[BlackElo "2579"]
[Result "1-0"]
[Round "05"]
[TimeControl "180+2"]
[Date "2023.02.21"]
[WhiteClock "0:00:37"]
[BlackClock "0:00:03"]

1. Nf3 {[%clk 0:03:00]}  Nf6 {[%clk 0:02:58]} 2. g3 {[%clk 0:03:01]}  e6 {[%clk 0:02:58]} 3. Bg2 {[%clk 0:03:01]}  d5 {[%clk 0:02:59]} 4. O-O {[%clk 0:03:00]}  Be7 {[%clk 0:02:59]} 5. d3 {[%clk 0:02:59]}  O-O {[%clk 0:02:57]} 6. Nbd2 {[%clk 0:02:57]}  c5 {[%clk 0:02:58]} 7. e4 {[%clk 0:02:57]}  Nc6 {[%clk 0:02:57]} 8. Re1 {[%clk 0:02:57]}  b5 {[%clk 0:02:57]} 9. e5 {[%clk 0:02:56]}  Nd7 {[%clk 0:02:57]} 10. Nf1 {[%clk 0:02:57]}  a5 {[%clk 0:02:57]} 11. h4 {[%clk 0:02:55]}  b4 {[%clk 0:02:57]} 12. h5 {[%clk 0:02:56]}  h6 {[%clk 0:02:57]} 13. Bf4 {[%clk 0:02:54]}  a4 {[%clk 0:02:44]} 14. a3 {[%clk 0:02:54]}  bxa3 {[%clk 0:02:44]} 15. bxa3 {[%clk 0:02:54]}  Nd4 {[%clk 0:02:26]} 16. c4 {[%clk 0:02:47]}  Nb3 {[%clk 0:02:19]} 17. Rb1 {[%clk 0:02:41]}  Nb6 {[%clk 0:02:01]} 18. N3d2 {[%clk 0:02:27]}  Nxd2 {[%clk 0:01:54]} 19. Qxd2 {[%clk 0:02:10]}  Ra6 {[%clk 0:01:43]} 20. Qc2 {[%clk 0:02:05]}  Bg5 {[%clk 0:01:18]} 21. Be3 {[%clk 0:01:49]}  d4 {[%clk 0:01:05]} 22. Bxg5 {[%clk 0:01:45]}  Qxg5 {[%clk 0:01:06]} 23. Qe2 {[%clk 0:01:45]}  Nd7 {[%clk 0:00:57]} 24. f4 {[%clk 0:01:39]}  Qe7 {[%clk 0:00:57]} 25. Nd2 {[%clk 0:01:35]}  f6 {[%clk 0:00:54]} 26. Nf3 {[%clk 0:01:18]}  fxe5 {[%clk 0:00:25]} 27. Nxe5 {[%clk 0:01:15]}  Nxe5 {[%clk 0:00:25]} 28. Qxe5 {[%clk 0:01:16]}  Bd7 {[%clk 0:00:20]} 29. Rb7 {[%clk 0:01:11]}  Qd6 {[%clk 0:00:21]} 30. Bh3 {[%clk 0:00:59]}  Qxe5 {[%clk 0:00:12]} 31. Rxe5 {[%clk 0:00:59]}  Be8 {[%clk 0:00:09]} 32. Bxe6+ {[%clk 0:00:56]}  Kh8 {[%clk 0:00:10]} 33. Rb8 {[%clk 0:00:55]}  g5 {[%clk 0:00:02]} 34. Bd5 {[%clk 0:00:53]}  Kg7 {[%clk 0:00:01]} 35. Rexe8 {[%clk 0:00:53]}  Rxe8 {[%clk 0:00:02]} 36. Rxe8 {[%clk 0:00:53]}  gxf4 {[%clk 0:00:02]} 37. gxf4 {[%clk 0:00:54]}  Rf6 {[%clk 0:00:01]} 38. Re7+ {[%clk 0:00:44]}  Kh8 {[%clk 0:00:02]} 39. Ra7 {[%clk 0:00:39]}  Rxf4 {[%clk 0:00:02]} 40. Be4 {[%clk 0:00:37]}  Rh4 {[%clk 0:00:02]} 41. Bg6 {[%clk 0:00:37]}  Rg4+ {[%clk 0:00:02]} 42. Kf2 {[%clk 0:00:37]}  Rh4 {[%clk 0:00:02]} 43. Rxa4 {[%clk 0:00:37]}  Rh3 {[%clk 0:00:03]} 44. Ra7 {[%clk 0:00:36]}  Kg8 {[%clk 0:00:03]} 45. a4 {[%clk 0:00:37]}  Rh2+ {[%clk 0:00:03]} 1-0


[Site "https://www.chess.com"]

[Event "Titled Tuesday Blitz February 21 Early 2023"]
[White "Andreikin, Dmitry"]
[Black "Predke, Alexandr"]
[WhiteFideId "4158814"]
[BlackFideId "24107581"]
[WhiteElo "2729"]
[BlackElo "2685"]
[Result "1-0"]
[Round "05"]
[TimeControl "180+2"]
[Date "2023.02.21"]
[WhiteClock "0:00:51"]
[BlackClock "0:00:02"]

1. c4 {[%clk 0:03:00]}  c5 {[%clk 0:02:58]} 2. Nc3 {[%clk 0:02:59]}  Nc6 {[%clk 0:02:56]} 3. g3 {[%clk 0:02:57]}  g6 {[%clk 0:02:56]} 4. Bg2 {[%clk 0:02:56]}  Bg7 {[%clk 0:02:56]} 5. d3 {[%clk 0:02:48]}  d6 {[%clk 0:02:56]} 6. Bd2 {[%clk 0:02:47]}  e5 {[%clk 0:02:47]} 7. a3 {[%clk 0:02:45]}  Nge7 {[%clk 0:02:46]} 8. Rb1 {[%clk 0:02:41]}  a5 {[%clk 0:02:45]} 9. Nf3 {[%clk 0:02:38]}  O-O {[%clk 0:02:43]} 10. h4 {[%clk 0:02:25]}  Bg4 {[%clk 0:02:43]} 11. Nh2 {[%clk 0:02:22]}  Be6 {[%clk 0:02:40]} 12. h5 {[%clk 0:02:21]}  gxh5 {[%clk 0:02:14]} 13. Nf1 {[%clk 0:02:07]}  f5 {[%clk 0:02:03]} 14. Rxh5 {[%clk 0:01:42]}  Qe8 {[%clk 0:02:03]} 15. Rh1 {[%clk 0:01:36]}  Qg6 {[%clk 0:02:03]} 16. Ne3 {[%clk 0:01:34]}  Nd4 {[%clk 0:01:58]} 17. Ned5 {[%clk 0:01:30]}  Nxd5 {[%clk 0:01:52]} 18. Nxd5 {[%clk 0:01:29]}  Bxd5 {[%clk 0:00:28]} 19. Bxd5+ {[%clk 0:01:27]}  Kh8 {[%clk 0:00:28]} 20. e3 {[%clk 0:01:21]}  Nc6 {[%clk 0:00:28]} 21. Qh5 {[%clk 0:01:19]}  Qxh5 {[%clk 0:00:23]} 22. Rxh5 {[%clk 0:01:20]}  Ne7 {[%clk 0:00:13]} 23. Bxb7 {[%clk 0:01:09]}  Ra7 {[%clk 0:00:14]} 24. Bg2 {[%clk 0:01:04]}  Ng6 {[%clk 0:00:12]} 25. Ke2 {[%clk 0:01:01]}  h6 {[%clk 0:00:02]} 26. Bd5 {[%clk 0:00:54]}  Kh7 {[%clk 0:00:01]} 27. Rbh1 {[%clk 0:00:51]}  Ne7 {[%clk 0:00:02]} 28. e4 {[%clk 0:00:50]}  f4 {[%clk 0:00:02]} 29. gxf4 {[%clk 0:00:51]}  exf4 {[%clk 0:00:02]} 30. Bc3 {[%clk 0:00:51]} 1-0


[Site "https://www.chess.com"]

[Event "Titled Tuesday Blitz February 21 Early 2023"]
[White "Movahed, Sina"]
[Black "Fedoseev, Vladimir"]
[WhiteFideId "42520835"]
[BlackFideId "24130737"]
[WhiteElo "2340"]
[BlackElo "2680"]
[Result "1-0"]
[Round "05"]
[TimeControl "180+2"]
[Date "2023.02.21"]
[WhiteClock "0:01:06"]
[BlackClock "0:00:35"]

1. e4 {[%clk 0:02:56]}  c5 {[%clk 0:02:57]} 2. Nf3 {[%clk 0:02:56]}  d6 {[%clk 0:02:58]} 3. d4 {[%clk 0:02:56]}  cxd4 {[%clk 0:02:58]} 4. Nxd4 {[%clk 0:02:57]}  Nf6 {[%clk 0:02:58]} 5. Nc3 {[%clk 0:02:58]}  a6 {[%clk 0:02:59]} 6. Bg5 {[%clk 0:02:58]}  e6 {[%clk 0:02:58]} 7. f4 {[%clk 0:02:58]}  h6 {[%clk 0:02:58]} 8. Bh4 {[%clk 0:02:58]}  Qb6 {[%clk 0:02:59]} 9. a3 {[%clk 0:02:56]}  Nbd7 {[%clk 0:02:55]} 10. Bf2 {[%clk 0:02:56]}  Qc7 {[%clk 0:02:52]} 11. Qe2 {[%clk 0:02:47]}  e5 {[%clk 0:02:26]} 12. Nd5 {[%clk 0:02:37]}  Nxd5 {[%clk 0:02:25]} 13. exd5 {[%clk 0:02:38]}  Qa5+ {[%clk 0:02:22]} 14. c3 {[%clk 0:02:37]}  Qxd5 {[%clk 0:02:19]} 15. O-O-O {[%clk 0:01:57]}  Qa2 {[%clk 0:01:52]} 16. Nc2 {[%clk 0:01:52]}  a5 {[%clk 0:01:23]} 17. g3 {[%clk 0:01:40]}  Be7 {[%clk 0:01:16]} 18. Bg2 {[%clk 0:01:38]}  Qe6 {[%clk 0:01:13]} 19. Bd5 {[%clk 0:01:36]}  Qg6 {[%clk 0:01:13]} 20. Be4 {[%clk 0:01:22]}  Qe6 {[%clk 0:01:10]} 21. f5 {[%clk 0:01:21]}  Bg5+ {[%clk 0:00:55]} 22. Kb1 {[%clk 0:01:19]}  Qe7 {[%clk 0:00:55]} 23. h4 {[%clk 0:01:16]}  Bf6 {[%clk 0:00:55]} 24. g4 {[%clk 0:01:15]}  O-O {[%clk 0:00:37]} 25. g5 {[%clk 0:01:11]}  hxg5 {[%clk 0:00:38]} 26. hxg5 {[%clk 0:01:12]}  Bxg5 {[%clk 0:00:38]} 27. Qh5 {[%clk 0:01:12]}  Bh6 {[%clk 0:00:35]} 28. Rdg1 {[%clk 0:01:06]} 1-0


[Site "https://www.chess.com"]

[Event "Titled Tuesday Blitz February 21 Early 2023"]
[White "Makarian, Rudik"]
[Black "Zemlyanskii, Ivan"]
[WhiteFideId "44105681"]
[BlackFideId "24249971"]
[WhiteElo "2545"]
[BlackElo "2300"]
[Result "1-0"]
[Round "05"]
[TimeControl "180+2"]
[Date "2023.02.21"]
[WhiteClock "0:00:31"]
[BlackClock "0:00:01"]

1. d4 {[%clk 0:03:00]}  d5 {[%clk 0:02:57]} 2. c4 {[%clk 0:03:01]}  c6 {[%clk 0:02:57]} 3. Nf3 {[%clk 0:03:00]}  Nf6 {[%clk 0:02:55]} 4. Nc3 {[%clk 0:03:00]}  dxc4 {[%clk 0:02:54]} 5. a4 {[%clk 0:02:56]}  Bf5 {[%clk 0:02:54]} 6. Ne5 {[%clk 0:02:56]}  Nbd7 {[%clk 0:02:54]} 7. Nxc4 {[%clk 0:02:57]}  Qc7 {[%clk 0:02:55]} 8. g3 {[%clk 0:02:56]}  e5 {[%clk 0:02:52]} 9. dxe5 {[%clk 0:02:57]}  Nxe5 {[%clk 0:02:52]} 10. Bf4 {[%clk 0:02:57]}  Nfd7 {[%clk 0:02:51]} 11. Qc1 {[%clk 0:02:57]}  f6 {[%clk 0:02:34]} 12. Bg2 {[%clk 0:02:55]}  g5 {[%clk 0:02:31]} 13. Nxe5 {[%clk 0:02:43]}  Nxe5 {[%clk 0:02:29]} 14. Be3 {[%clk 0:02:42]}  O-O-O {[%clk 0:02:03]} 15. a5 {[%clk 0:02:13]}  Kb8 {[%clk 0:01:41]} 16. O-O {[%clk 0:01:49]}  Bb4 {[%clk 0:01:27]} 17. Bxa7+ {[%clk 0:01:47]}  Kc8 {[%clk 0:01:09]} 18. Bb6 {[%clk 0:01:44]}  Qe7 {[%clk 0:00:58]} 19. a6 {[%clk 0:01:39]}  bxa6 {[%clk 0:00:51]} 20. Bxd8 {[%clk 0:01:37]}  Rxd8 {[%clk 0:00:52]} 21. Nd5 {[%clk 0:01:32]}  Qc5 {[%clk 0:00:43]} 22. Nxb4 {[%clk 0:01:28]}  Qxb4 {[%clk 0:00:43]} 23. Rxa6 {[%clk 0:01:29]}  Be4 {[%clk 0:00:33]} 24. Ra8+ {[%clk 0:01:24]}  Kc7 {[%clk 0:00:32]} 25. Rxd8 {[%clk 0:01:23]}  Kxd8 {[%clk 0:00:33]} 26. Rd1+ {[%clk 0:01:21]}  Ke8 {[%clk 0:00:30]} 27. Qd2 {[%clk 0:01:21]}  Qc4 {[%clk 0:00:23]} 28. b3 {[%clk 0:01:17]}  Qc2 {[%clk 0:00:23]} 29. Qxc2 {[%clk 0:01:00]}  Bxc2 {[%clk 0:00:23]} 30. Rc1 {[%clk 0:01:01]}  Bxb3 {[%clk 0:00:24]} 31. Bxc6+ {[%clk 0:01:01]}  Ke7 {[%clk 0:00:23]} 32. Be4 {[%clk 0:01:00]}  h5 {[%clk 0:00:23]} 33. Rc7+ {[%clk 0:00:56]}  Kd6 {[%clk 0:00:23]} 34. Rh7 {[%clk 0:00:56]}  Bd1 {[%clk 0:00:22]} 35. Kf1 {[%clk 0:00:56]}  Nc4 {[%clk 0:00:16]} 36. Ke1 {[%clk 0:00:54]}  Ba4 {[%clk 0:00:13]} 37. Rxh5 {[%clk 0:00:55]}  Bd7 {[%clk 0:00:13]} 38. Rh6 {[%clk 0:00:52]}  Ke7 {[%clk 0:00:12]} 39. Bd5 {[%clk 0:00:48]}  Ne5 {[%clk 0:00:11]} 40. Rh7+ {[%clk 0:00:46]}  Kd6 {[%clk 0:00:12]} 41. Be4 {[%clk 0:00:44]}  Be6 {[%clk 0:00:12]} 42. h4 {[%clk 0:00:42]}  gxh4 {[%clk 0:00:12]} 43. gxh4 {[%clk 0:00:43]}  f5 {[%clk 0:00:11]} 44. Bc2 {[%clk 0:00:43]}  f4 {[%clk 0:00:11]} 45. h5 {[%clk 0:00:43]}  f3 {[%clk 0:00:11]} 46. h6 {[%clk 0:00:40]}  fxe2 {[%clk 0:00:09]} 47. Kxe2 {[%clk 0:00:39]}  Bc4+ {[%clk 0:00:07]} 48. Ke3 {[%clk 0:00:38]}  Ng4+ {[%clk 0:00:06]} 49. Kf4 {[%clk 0:00:38]}  Be6 {[%clk 0:00:07]} 50. f3 {[%clk 0:00:31]}  Nf6 {[%clk 0:00:07]} 51. Ra7 {[%clk 0:00:31]}  Nd5+ {[%clk 0:00:05]} 52. Kg5 {[%clk 0:00:32]}  Ke5 {[%clk 0:00:01]} 53. h7 {[%clk 0:00:31]} 1-0


[Site "https://www.chess.com"]

[Event "Titled Tuesday Blitz February 21 Early 2023"]
[White "Kislinsky, Alexey"]
[Black "Vokhidov, Shamsiddin"]
[WhiteFideId "14108801"]
[BlackFideId "14204223"]
[WhiteElo "2357"]
[BlackElo "2586"]
[Result "0-1"]
[Round "05"]
[TimeControl "180+2"]
[Date "2023.02.21"]
[WhiteClock "0:00:09"]
[BlackClock "0:00:21"]

1. e4 {[%clk 0:02:59]}  c5 {[%clk 0:02:59]} 2. c3 {[%clk 0:02:59]}  Nf6 {[%clk 0:02:59]} 3. e5 {[%clk 0:02:58]}  Nd5 {[%clk 0:02:58]} 4. Bc4 {[%clk 0:02:59]}  Nb6 {[%clk 0:02:58]} 5. Bb3 {[%clk 0:02:58]}  d6 {[%clk 0:02:59]} 6. exd6 {[%clk 0:02:57]}  Qxd6 {[%clk 0:02:59]} 7. Nf3 {[%clk 0:02:57]}  c4 {[%clk 0:02:54]} 8. Bc2 {[%clk 0:02:56]}  Qe6+ {[%clk 0:02:54]} 9. Kf1 {[%clk 0:02:56]}  Nc6 {[%clk 0:02:52]} 10. Na3 {[%clk 0:02:52]}  g6 {[%clk 0:02:49]} 11. h4 {[%clk 0:02:51]}  h6 {[%clk 0:02:48]} 12. b3 {[%clk 0:02:40]}  Bg7 {[%clk 0:02:39]} 13. Nb5 {[%clk 0:02:40]}  Qd7 {[%clk 0:02:33]} 14. Qe2 {[%clk 0:02:36]}  a6 {[%clk 0:02:32]} 15. Na3 {[%clk 0:02:32]}  cxb3 {[%clk 0:02:21]} 16. axb3 {[%clk 0:02:32]}  Qc7 {[%clk 0:02:16]} 17. Nc4 {[%clk 0:02:27]}  Bg4 {[%clk 0:02:14]} 18. Nxb6 {[%clk 0:02:21]}  Qxb6 {[%clk 0:02:14]} 19. Ra4 {[%clk 0:02:12]}  h5 {[%clk 0:02:10]} 20. Qe3 {[%clk 0:02:11]}  Qc7 {[%clk 0:02:05]} 21. Ng5 {[%clk 0:01:36]}  Bh6 {[%clk 0:01:34]} 22. Ba3 {[%clk 0:01:26]}  O-O-O {[%clk 0:01:22]} 23. Bc5 {[%clk 0:01:03]}  Rd7 {[%clk 0:01:18]} 24. Bb6 {[%clk 0:01:01]}  Qd6 {[%clk 0:01:18]} 25. Ne4 {[%clk 0:00:53]}  Qe5 {[%clk 0:01:10]} 26. Qc5 {[%clk 0:00:32]}  Qxc5 {[%clk 0:00:59]} 27. Bxc5 {[%clk 0:00:33]}  f5 {[%clk 0:00:59]} 28. Ng5 {[%clk 0:00:27]}  Rxd2 {[%clk 0:00:59]} 29. Ra2 {[%clk 0:00:28]}  Bxg5 {[%clk 0:00:55]} 30. hxg5 {[%clk 0:00:27]}  Rhd8 {[%clk 0:00:52]} 31. Kg1 {[%clk 0:00:24]}  Bd1 {[%clk 0:00:47]} 32. Bb1 {[%clk 0:00:23]}  Bxb3 {[%clk 0:00:36]} 33. Rxd2 {[%clk 0:00:21]}  Rxd2 {[%clk 0:00:36]} 34. Kh2 {[%clk 0:00:22]}  a5 {[%clk 0:00:36]} 35. Re1 {[%clk 0:00:21]}  a4 {[%clk 0:00:36]} 36. Ba3 {[%clk 0:00:19]}  Rxf2 {[%clk 0:00:35]} 37. Kg3 {[%clk 0:00:18]}  Rd2 {[%clk 0:00:35]} 38. Kf4 {[%clk 0:00:16]}  e5+ {[%clk 0:00:33]} 39. Ke3 {[%clk 0:00:15]}  Rxg2 {[%clk 0:00:32]} 40. Bd3 {[%clk 0:00:14]}  Rxg5 {[%clk 0:00:31]} 41. Kf2 {[%clk 0:00:12]}  Bd5 {[%clk 0:00:27]} 42. Bb5 {[%clk 0:00:12]}  Rg2+ {[%clk 0:00:26]} 43. Kf1 {[%clk 0:00:12]}  Ra2 {[%clk 0:00:27]} 44. Bd6 {[%clk 0:00:12]}  a3 {[%clk 0:00:22]} 45. c4 {[%clk 0:00:12]}  Be4 {[%clk 0:00:21]} 46. Bxc6 {[%clk 0:00:09]}  bxc6 {[%clk 0:00:21]} 47. Bxe5 {[%clk 0:00:10]}  Bd3+ {[%clk 0:00:21]} 48. Kg1 {[%clk 0:00:09]}  Bxc4 {[%clk 0:00:21]} 49. Re3 {[%clk 0:00:09]}  Re2 {[%clk 0:00:21]} 0-1


[Site "https://www.chess.com"]

[Event "Titled Tuesday Blitz February 21 Early 2023"]
[White "Leiva, Gianmarco"]
[Black "Ibarra Jerez, Jose Carlos"]
[WhiteFideId "3804399"]
[BlackFideId "2226332"]
[WhiteElo "2392"]
[BlackElo "2563"]
[Result "0-1"]
[Round "05"]
[TimeControl "180+2"]
[Date "2023.02.21"]
[WhiteClock "0:00:22"]
[BlackClock "0:01:08"]

1. e4 {[%clk 0:03:00]}  c5 {[%clk 0:02:57]} 2. Nf3 {[%clk 0:03:01]}  Nc6 {[%clk 0:02:58]} 3. Bb5 {[%clk 0:03:01]}  e6 {[%clk 0:02:57]} 4. O-O {[%clk 0:03:01]}  Nge7 {[%clk 0:02:57]} 5. c3 {[%clk 0:02:48]}  a6 {[%clk 0:02:55]} 6. Ba4 {[%clk 0:02:47]}  b5 {[%clk 0:02:56]} 7. Bc2 {[%clk 0:02:47]}  Bb7 {[%clk 0:02:57]} 8. d3 {[%clk 0:02:48]}  Rc8 {[%clk 0:02:52]} 9. a4 {[%clk 0:02:46]}  b4 {[%clk 0:02:51]} 10. Nbd2 {[%clk 0:02:44]}  Ng6 {[%clk 0:02:50]} 11. Re1 {[%clk 0:02:43]}  Be7 {[%clk 0:02:50]} 12. Nf1 {[%clk 0:02:38]}  O-O {[%clk 0:02:46]} 13. Ng3 {[%clk 0:02:38]}  d5 {[%clk 0:02:40]} 14. Qe2 {[%clk 0:02:12]}  d4 {[%clk 0:02:23]} 15. c4 {[%clk 0:01:59]}  Bd6 {[%clk 0:02:22]} 16. Nh5 {[%clk 0:01:55]}  Qc7 {[%clk 0:02:17]} 17. g3 {[%clk 0:01:25]}  Rce8 {[%clk 0:02:17]} 18. Qf1 {[%clk 0:01:18]}  f5 {[%clk 0:02:14]} 19. Ng5 {[%clk 0:00:58]}  Qd7 {[%clk 0:01:53]} 20. Qh3 {[%clk 0:00:57]}  h6 {[%clk 0:01:47]} 21. exf5 {[%clk 0:00:47]}  exf5 {[%clk 0:01:41]} 22. Nf3 {[%clk 0:00:42]}  Nce5 {[%clk 0:01:27]} 23. Nxe5 {[%clk 0:00:30]}  Nxe5 {[%clk 0:01:27]} 24. Rxe5 {[%clk 0:00:28]}  Rxe5 {[%clk 0:01:11]} 25. Nf4 {[%clk 0:00:22]}  Re1+ {[%clk 0:01:08]} 0-1


[Site "https://www.chess.com"]